Cogmind - Beta 16 --- EXPLORER MODE // 2025.11.24 @ 17:18:46 Player: K.K.Y. Result: Destroyed self with Subdweller Shrapnel Launcher Performance ------------- Evolutions (0) 0 Regions Visited (3) 600 Robots Destroyed (23) 115 Value Destroyed (665) 665 Prototype IDs (1) 20 Alien Tech Used (0) 0 Bonus (0) 0 TOTAL SCORE: 1400 Bonus ------- None Cogmind --------- Core Integrity 0/250 Matter 233/300 Energy 100/100 System Corruption 0% Temperature Cool (0) Movement Treading (160) Location -10/Subcaves Parts ------- > --- POWER (1) -------- (None) > --- PROPULSION (2) --- Light Treads Light Treads > --- UTILITY (3) ------ Medium Storage Unit Splice Drone Bay (5/6) > --- WEAPON (2) ------- EM Pulse Gun Subdweller Shrapnel Launcher > --- INVENTORY (10) --- Improved Heat Sink High-capacity Storage Unit Cobbler Unit Particle Gun Subdweller Beam Cannon Battle Rifle Multitool Peak State ------------ > --- POWER ------------ (None) > --- PROPULSION ------- Light Treads Light Treads > --- UTILITY ---------- Medium Storage Unit Splice Drone Bay > --- WEAPON ----------- EM Pulse Gun Particle Gun > --- INVENTORY -------- Improved Heat Sink High-capacity Storage Unit Battle Rifle Subdweller Shrapnel Launcher Multitool [Rating: 14] Favorites ----------- Power Ion Engine Engine Ion Engine Propulsion Light Treads Treads Light Treads Utility Medium Storage Unit Device Splice Drone Bay Storage Medium Storage Unit Weapon EM Pulse Gun Energy Gun EM Pulse Gun Ballistic Gun Assault Rifle Launcher Subdweller Shrapnel Launcher Special Weapon Mining Laser Build | -11 -10 -10 -10 ------- Run | Yrd Mat Min Sub Slots Evolved 1 | . 1 . . Power . | . . . . Propulsion . | . . . . Utility 1 | . 1 . . Weapon . | . . . . Parts Attached 16 | 6 1 . 9 Power 1 | 1 . . . Engine 1 | 1 . . . Core . | . . . . Reactor . | . . . . Propulsion 5 | 2 1 . 2 Treads 5 | 2 1 . 2 Leg . | . . . . Wheel . | . . . . Hover . | . . . . Flight . | . . . . Utility 2 | 1 . . 1 Device 1 | . . . 1 Storage 1 | 1 . . . Processor . | . . . . Hackware . | . . . . Protection . | . . . . Artifact . | . . . . Weapon 8 | 2 . . 6 Energy Gun 5 | 1 . . 4 Energy Cannon . | . . . . Ballistic Gun 1 | 1 . . . Ballistic Cannon . | . . . . Launcher 1 | . . . 1 Special Weapon 1 | . . . 1 Impact Weapon . | . . . . Slashing Weapon . | . . . . Piercing Weapon . | . . . . Special Melee Weapon . | . . . . Unidentified Prototypes 1 | . . . 1 Parts Lost 8 | . . . 8 Power 1 | . . . 1 Propulsion 2 | . . . 2 Utility . | . . . . Weapon 5 | . . . 5 Highest Loss Streak 4 | . . . 4 To Critical Strikes 2 | . . . 2 Average Backups 4 | 1 2 7 4 Power . | . . . . Propulsion 1 | . . 2 1 Utility . | . . . 1 Weapon 2 | . 2 5 1 Tool/Special . | . . . . Unused Backups 6 | . . . 6 Power . | . . . . Propulsion . | . . . . Utility 3 | . . . 3 Weapon 2 | . . . 2 Tool/Special 1 | . . . 1 Average Slot Usage (%) 65 | . 73 62 65 Engine 5 | . 12 12 1 Treads 21 | . 25 25 19 Device 4 | . . . 8 Storage 12 | . 12 12 12 Energy Gun 12 | . 10 . 18 Ballistic Gun 6 | . 12 12 1 Peak Build Rating 14 | 6 6 6 14 Average Rating 8 | 4 5 5 10 On Entrance 4 | . 6 5 6 Avg Prop Armor Cover (%) . | . . . . Naked Turns . | . . . . Heaviest Build 28 | 19 19 17 28 Greatest Support 40 | 40 40 40 40 Greatest Overweight (x) 1 | . . . 1 Average Overweight (x) . | . . . . Largest Inventory Capacity 10 | 10 10 10 10 Average Capacity 9 | 8 10 10 10 Most Carried 9 | 5 8 8 9 Average Carried 5 | 1 2 7 4 Final Capacity 10 | 10 10 10 10 Final Carried 8 | 1 7 8 8 Class Distribution -------------------- 100% | Hacker-Mutant Dominant Class ---------------- Hacker-Mutant | -10/Materials Hacker-Mutant | -10/Mines Hacker-Mutant | -10/Subcaves Resources | -11 -10 -10 -10 ----------- Run | Yrd Mat Min Sub Matter Collected 642 | 220 76 . 346 Remotely . | . . . . Salvage Created 771 | . 166 128 477 Parts 37 | . 14 8 15 Haulers Intercepted 1 | . 1 . . Recyclers Shooed . | . . . . Parts Field Recycled . | . . . . Retrieved Matter . | . . . . Parts Self-Destructed . | . . . . Prevented . | . . . . Parts Restored . | . . . . Kills | -11 -10 -10 -10 ------- Run | Yrd Mat Min Sub Combat Hostiles Destroyed 18 | . 4 2 12 Guns 14 | . 4 2 8 Cannons 2 | . . . 2 AOE 2 | . . . 2 Classes Destroyed 8 | . 3 2 3 Worker 1 | . . 1 . Hauler 1 | . 1 . . Watcher 3 | . 3 . . Swarmer 4 | . 4 . . Grunt 5 | . . 2 3 Sentry 1 | . . . 1 Cobbler 1 | . . . 1 Subdweller 8 | . . . 8 Best Kill Streak 3 | . 2 3 2 Combat Bots Only 2 | . 2 2 2 Max Kills in Single Turn 1 | . 1 1 1 Gunslinging . | . . . . Exploded 1 | . . . 1 Melee . | . . . . Uniques/NPCs Destroyed . | . . . . Combat | -11 -10 -10 -10 -------- Run | Yrd Mat Min Sub Hostile Shots Fired 124 | . 13 9 102 Missed 26 | . 3 1 22 Hits 98 | . 10 8 80 Projectile 98 | . 10 8 80 Critical Strikes 3 | . . . 3 Damage Taken 1211 | . 50 71 1090 Core 250 | . 3 9 238 Absorbed by Shields . | . . . . Ignored by Resistances 735 | . 36 44 655 Core Remaining (%) 100 | 100 . . . Volleys Fired 102 | . 20 10 72 Largest 2 | . 2 1 2 Hottest 150 | . 60 20 150 Shots Fired 162 | . 32 10 120 Gun 139 | . 32 10 97 Cannon . | . . . . Launcher 9 | . . . 9 Special 14 | . . . 14 Kinetic 62 | . 20 10 32 Thermal 60 | . . . 60 Explosive . | . . . . Electromagnetic 40 | . 12 . 28 Robot Hit Streak 31 | . 19 9 31 Robot Miss Streak 1 | . 1 1 1 Penetration Max . | . . . . Secondary Targets 1 | . . . 1 Max Gunslinging Chain 1 | . . . 1 Shots Hit Robots 131 | . 26 9 96 Core Hits 41 | . 9 5 27 Critical Kills . | . . . . Critical Parts Destroyed . | . . . . Critical Strikes 6 | . 1 . 5 Burn 4 | . . . 4 Corrupt 2 | . 1 . 1 Melee Attacks . | . . . . Impact . | . . . . Slashing . | . . . . Piercing . | . . . . Sneak Attacks . | . . . . Combat Hostiles . | . . . . Follow-up Attacks . | . . . . Damage Inflicted 2190 | . 382 112 1696 Guns 1487 | . 358 112 1017 Cannons . | . . . . Explosions 391 | . 24 . 367 Melee . | . . . . Ramming . | . . . . Kinetic 907 | . 181 112 614 Thermal 837 | . 24 . 813 Explosive . | . . . . Electromagnetic 446 | . 177 . 269 Impact . | . . . . Slashing . | . . . . Piercing . | . . . . Highest Corruption . | . . . . Average Corruption . | . . . . Corruption Purged . | . . . . Corruption Blocked . | . . . . Overload Shots . | . . . . Overflow Damage . | . . . . Projectiles . | . . . . Explosions . | . . . . Melee . | . . . . Knockbacks . | . . . . Impact . | . . . . Kinetic . | . . . . Secondary . | . . . . Self-Inflicted Damage 31 | . . . 31 Shots 6 | . . . 6 Rammed . | . . . . Targets Rammed . | . . . . Kicked . | . . . . Crushed . | . . . . Highest Temperature . | . . . . Average Temperature . | . . . . Received Heat Transfer 384 | . . 66 318 Siege Activations . | . . . . Martial Activations . | . . . . Shielding Activations . | . . . . Robots Disrupted . | . . . . Combat Hostiles . | . . . . Robots Corrupted . | . . . . Combat Hostiles . | . . . . Parts Fried . | . . . . Impact Corruptions . | . . . . Robots Melted . | . . . . Combat Hostiles . | . . . . Parts Melted 2 | . . . 2 Heat Transferred 2365 | . 50 . 2315 Parts Sabotaged . | . . . . Parts Stolen . | . . . . Parts Stripped . | . . . . Power Chain Reactions 1 | . 1 . . Alert | -11 -10 -10 -10 ------- Run | Yrd Mat Min Sub Maximum Alert Level . | . . . . Low Security (%) 100 | 100 100 100 . Level 1 . | . . . . Level 2 . | . . . . Level 3 . | . . . . Level 4 . | . . . . Level 5 . | . . . . High Security . | . . . . Max Security . | . . . . Peak Influence 55 | . 35 55 . Initial . | . . . . Average 3 | . 4 2 . Influence Increases 307 | . 133 55 119 Destroy 0b10 Robot/C 200 | . 80 40 80 Destroy 0b10 Robot/NC 25 | . 20 5 . Destroy Leader 58 | . 28 10 20 Allied During Kill 4 | . . . 4 Successful Hack 2 | . 2 . . Destroy Structure 3 | . 3 . . Lose Combat Pursuer 15 | . . . 15 Influence Decreases 307 | . 133 55 119 Time Decay 307 | . 133 55 119 Squads Dispatched . | . . . . Investigation . | . . . . Extermination . | . . . . Reinforcement . | . . . . Assault . | . . . . Garrison . | . . . . Intercept . | . . . . Searches Triggered . | . . . . Construction Impeded . | . . . . Haulers Reinforced . | . . . . Active Scanning Responses . | . . . . Cargo Convoy Interrupts . | . . . . Stealth | -11 -10 -10 -10 --------- Run | Yrd Mat Min Sub Distress Signals . | . . . . Communications Jammed . | . . . . Distress Signals . | . . . . Times Spotted 27 | . 9 2 16 Peak Tracking Total 3 | . 3 2 2 Tactical Retreats 3 | . . . 3 Traps | -11 -10 -10 -10 ------- Run | Yrd Mat Min Sub Traps Triggered 1 | . 1 . . Indirectly . | . . . . Trap Hack Attempts . | . . . . Triggered . | . . . . Disarmed . | . . . . Reprogrammed . | . . . . Reused . | . . . . Traps Extracted . | . . . . Installed . | . . . . Triggered . | . . . . Machines | -11 -10 -10 -10 ---------- Run | Yrd Mat Min Sub Machines Disabled . | . . . . Max in Single Turn . | . . . . Machines Repaired . | . . . . Machines Dismantled . | . . . . Machines Sabotaged . | . . . . Overloaded Fab Kills . | . . . . Hacking | -11 -10 -10 -10 --------- Run | Yrd Mat Min Sub Machines Accessed 4 | . 3 1 . Terminals 3 | . 3 . . Fabricators . | . . . . Repair Stations . | . . . . Recycling Units . | . . . . Scanalyzers . | . . . . Garrison Access . | . . . . Total Hacks 5 | . 4 1 . Successful 4 | . 3 1 . Failed 1 | . 1 . . Catastrophic . | . . . . Database Lockouts . | . . . . Manual 4 | . 4 . . Terminals 4 | . 4 . . Fabricators . | . . . . Repair Stations . | . . . . Recycling Units . | . . . . Scanalyzers . | . . . . Garrison Access . | . . . . Terminal Hacks 1 | . . 1 . Open Door 1 | . . 1 . Fabricator Hacks . | . . . . Repair Station Hacks . | . . . . Recycling Unit Hacks . | . . . . Scanalyzer . | . . . . Garrison Access Hacks . | . . . . Unauthorized Hacks 3 | . 3 . . Terminals 3 | . 3 . . Botnet 3 | . 3 . . Fabricators . | . . . . Repair Stations . | . . . . Recycling Units . | . . . . Scanalyzers . | . . . . Garrison Access . | . . . . Data Cores Recovered . | . . . . Used . | . . . . Hacking Detections 1 | . 1 . . Full Trace Events . | . . . . Feedback Events . | . . . . Feedback Blocked . | . . . . Robot Schematics Acquired . | . . . . Robots Built . | . . . . Authchips . | . . . . Time . | . . . . Total Robot Build Rating . | . . . . Part Schematics Acquired . | . . . . Parts Built . | . . . . Authchips . | . . . . Time . | . . . . Total Part Build Rating . | . . . . Part Studies Acquired . | . . . . Parts Repaired . | . . . . Time . | . . . . Parts Recycled . | . . . . Recycled Matter . | . . . . Retrieved Matter . | . . . . Retrieved Components . | . . . . Parts Scanalyzed . | . . . . Part Schematics Acquired . | . . . . Parts Damaged . | . . . . Bothacking | -11 -10 -10 -10 ------------ Run | Yrd Mat Min Sub Used RIF Installer . | . . . . Robots Hacked . | . . . . Non-combat . | . . . . Combat . | . . . . Robot Hacks Applied . | . . . . Relay Couplers Released . | . . . . Fabnet Peak Effective % . | . . . . Robots Rewired . | . . . . Allies Hacked . | . . . . Hacks Repelled . | . . . . Allies | -11 -10 -10 -10 -------- Run | Yrd Mat Min Sub Total Allies . | . . . . Largest Group . | . . . . Highest-Rated Group . | . . . . Highest-Rated Ally . | . . . . Total Orders . | . . . . Ally Attacks 7 | . . . 7 Total Damage 41 | . . . 41 Kills . | . . . . Allies Corrupted . | . . . . Allies Melted . | . . . . Intel | -11 -10 -10 -10 ------- Run | Yrd Mat Min Sub Active Infowar (turns) . | . . . . Robot Analysis Total . | . . . . Derelict Logs Recovered 1 | . . 1 . Drone Launches 6 | . . . 6 Drone Recoveries 5 | . . . 5 Exploration | -11 -10 -10 -10 ------------- Run | Yrd Mat Min Sub Turns Passed 3202 | 71 568 725 1838 Spaces Moved 1538 | 55 312 426 745 Core 25 | 25 . . . Treads 1513 | 30 312 426 745 Legs . | . . . . Wheels . | . . . . Hover . | . . . . Flight . | . . . . Fastest Speed 50 | 50 160 160 160 Average Speed 169 | 110 160 160 183 Slowest Speed 240 | 160 160 160 240 Overloaded Moves . | . . . . Propulsion Burnouts . | . . . . Robots Hopped . | . . . . Potential Cave-ins . | . . . . Cave-ins Triggered . | . . . . Exploration Rate (%) 46 | 3 66 74 42 Regions Visited 3 Branch Regions 2 Pre-discovered Areas . | . . . . Known Exits Taken 3 | 1 1 1 . Unknown Exits Taken . | . . . . Scrap Searched . | . . . . Spaces Dug 19 | . . . 19 Terrain Destroyed 76 | . 3 . 73 Melee . | . . . . Projectile . | . . . . AOE 76 | . 3 . 73 Terrain Rammed . | . . . . Walls Destroyed . | . . . . Machines Disabled . | . . . . Actions | -11 -10 -10 -10 --------- Run | Yrd Mat Min Sub Total 1943 | 65 349 460 1069 Wait 257 | . 10 24 223 Move 1535 | 54 311 425 745 Hop . | . . . . Pick Up 24 | 5 7 1 11 Fast Attach 2 | 2 . . . Attach 15 | 4 1 . 10 Detach 1 | . . . 1 Swap 3 | . . . 3 Drop 3 | . . . 3 Fire 102 | . 20 10 72 Melee . | . . . . Ram . | . . . . Kick . | . . . . Crush . | . . . . Escape Stasis . | . . . . Rewire 1 | . . . 1 Trap . | . . . . Miscellaneous . | . . . . Route ------- -11/Scrapyard -10/Materials (discovered 4 exits: *Mat x2 / *Min x2) -10/Mines (discovered 4 exits: *Mat x2 / *Exi / *Sub) -10/Subcaves History --------- Turn | Location | Event 7 | -11/Scrapyard | Identified exit to Materials 7 | -11/Scrapyard | Discovered exit to Materials (range 15) 72 | -11/Scrapyard | Entered Materials 72 | -10/Materials | Evolved 1 slot: Utility x1 283 | -10/Materials | Identified exit to Materials 283 | -10/Materials | Discovered exit to Materials (range 15) 301 | -10/Materials | Build established: Hacker-Mutant 344 | -10/Materials | Identified exit to Mines 344 | -10/Materials | Discovered exit to Mines (range 16) 393 | -10/Materials | Discovered exit to Materials (range 14) 560 | -10/Materials | Discovered exit to Mines (range 16) 640 | -10/Materials | Entered Mines 743 | -10/Mines | Deemed a non-threat by the Exiles lab entrance 744 | -10/Mines | Identified exit to Exiles 744 | -10/Mines | Discovered exit to Exiles (range 5) 946 | -10/Mines | Learned 2 Materials zone layouts 967 | -10/Mines | Discovered exit to Materials (range 6) 972 | -10/Mines | Received a Rocket Launcher from a helpful Derelict 1132 | -10/Mines | Discovered exit to Materials (range 8) 1147 | -10/Mines | Found the Drone Emporium 1154 | -10/Mines | Found Prototype Device 1352 | -10/Mines | Identified exit to Subcaves 1352 | -10/Mines | Discovered exit to Subcaves (range 6) 1365 | -10/Mines | Entered Subcaves 1371 | -10/Subcaves | Ambushed by Subdwellers from Twisted Machinery 1655 | -10/Subcaves | Core integrity fell below 50% 1677 | -10/Subcaves | Core integrity fell below 20% 1708 | -10/Subcaves | Lost 4 parts (1n3w) 1873 | -10/Subcaves | A swath of the cavern ceiling suddenly collapsed 1896 | -10/Subcaves | Identified Splice Drone Bay 2348 | -10/Subcaves | Shifting Twisted Machinery released Battle Rifle 2359 | -10/Subcaves | Shifting Twisted Machinery released Sub. Shrapnel Launcher 2982 | -10/Subcaves | Shifting Twisted Machinery released Sub. Optics 3056 | -10/Subcaves | Shifting Twisted Machinery released Sub. Optics 3203 | -10/Subcaves | Destroyed self with Subdweller Shrapnel Launcher Last Messages --------------- 02924_ Acquired Sub. Beam Cannon. Sub. Optics falls loose from the Twisted Machinery. 03017_ WE-HGF(R): "ARGHSUB!" 03026_ Destroyed Scrap Shield. 03028_ WE-HGF(R) destroyed. Sub. Optics falls loose from the Twisted Machinery. [Achievement: Dramatic Entrance] 03135_ Acquired 46 matter. 03138_ Acquired Lgt. Treads. 03140_ Dropped Lgt. Treads. 03141_ Dropped Imp. Heat Sink. 03141_ Acquired Lgt. Treads. 03144_ Dropped Lgt. Treads. 03144_ Acquired Imp. Heat Sink. 03157_ Acquired 10 matter. 03160_ Subatomizers dissect the Flight Unit. 03160_ Acquired 34 matter. 03163_ Acquired 43 matter. Map ----- +----------------------------------------------------+ | #### ### ##??# ##?????????????? | | #??# ### #?### ##### ##??????????????? | | ???# """"##?# ### ##???? #???????????????? | | ???## "" "#### ### #????? #???????????????? | | ????# "" ""## #?## #????# ##???????????????? | | ????# """"" "# #??# #???? #????????????????? | | ????##" " ### ##??# ##### ###???????????????? | | ?????## ###?######### # #???????????????? | | ?????#" #####????## #???????????????? | | ?????## " #??### ##???????????????? | | #?????#"""! ##??# ##??????????????? | | #?????# " ##### ###????????????? | | #?????# ##"## "#????????????? | | ??????## # ##?????????????? | | ???????## & ##??????????????? | | ????????# #???????????????? | | ????????# ###?????????????? | | ####????## " #?????????????? | | ##?#### ##### #?????????????? | | #?#"" ##??##" #?????????????? | | ##?#" "##?#!" ######## #?????????????? | | ####?## ""#?### ##??????? ##?????????????? | | ?????# #" "#???## ##?????????#??????????????? | | ?????# #"" #????####????#### #??????????????? | | ???### """ #????????####"" #??????????????? | | #### """""#???????## @ "" #???????????????? | | # ### ##?????#;; " #???????????????? | | # ""###??????#; #####???????????????? | | ## "" "#?#####?#;; ;#???????????????????? | | ?# ####&=&###; ;#???????????????????? | | ?# # =&&!&! ;#???????????????????? | | ?# = [ = & !& ;; ##""????????????????? | | ?# * ###!#""""; ""#???????????????? | | ?# #?####""" #?????????????????? | | ?##""#"# ###### ;; ##?????????????????? | | ??#### ## ### ### #####??????????????????? | | ???## ### ## ## "####???????????????????? | | ??## ##### "" #???????????????????? | | ### # # "" ##??????????????????? | | # "" #??????????????????? | | # #### ###??????????????????? | | # # ###### #???###????????????????????? | | ## ####????## #?????????????????????????? | | ### #????????## ##?????????????????????????? | | ## ##????????###??????????????????????????? | | #?????????????????????????????????????? | | %& #?????????????????????????????????????? | | ##?????????????????????????????????????? | | ### ##??????????????????????????????????????? | | ##?####???????????????????????????????????????? | +----------------------------------------------------+ Best States ------------- Heat Dissipation 25 Energy Generation 10 Energy Capacity 250 Matter Stores 300 Matter Capacity 300 Sight Range 16 Terrain Scan Density 10 Resistance: KI 35 Resistance: TH 35 Resistance: EX 35 Resistance: EM 35 Resistance: I 35 Resistance: S 35 Resistance: P 35 Evasion (%) 50 Recoil Reduction 2 Offensive Hacking 20 Item Schematics ----------------- None Robot Schematics ------------------ None Fabricated ------------ Nothing Repaired ---------- Nothing Studied --------- None Alien Tech Used ----------------- None Achievements -------------- Dramatic Entrance Challenges ------------ None Game ------ Seed LinkedNeutrinoTurbovents Manual? 0 Play Time 00:16:15 Cumulative 139.0 hours Start 2025.11.24 @ 16:59:46 End 2025.11.24 @ 17:18:46 Sessions 1 Manual Loads 0 Difficulty Explorer Special Mode None Game No. 162 Rogue 0 Adventurer 0 Explorer 162 Win Type - Total 0 Types 0/0/0/0/0/0/0/0/0/0 Lore% 68 Gallery% 66 Achievement% 51 Wizard Run 0 Options --------- Layout 1 ASCII 0 Keyboard 0 Movement Mouse Keybinds 0 Fullscreen 1 Font 24/Smallcaps Map View 50x35 Zoom Use 0% Tactical HUD 1 Map Filters NONE Filters NONE Steam 1 RUN: 7c47a0e4-19d9-447b-b0dd-e5445aa45870